bitfinex/quotes_ETHUSD_20240822
["timestamp","ask_amount","ask_price","bid_price","bid_amount"]
[1724294467384,0.09846323,2621.9,2621.6,4.69005]
[1724294467542,0.09846323,2621.9,2621.6,2.4014]
[1724294467946,0.09846323,2621.9,2621.5,2.746462]
[1724294467947,0.09846323,2621.9,2621.5,2.2887]
[1724294468200,0.09846323,2621.9,2621.3,2.28889]
[1724294468201,4.73263634,2621.9,2621.3,2.28889]
[1724294469896,2.74802845,2621.9,2621.3,2.28889]
[1724294470068,2.74802845,2621.9,2621.2,9.81392039]
[1724294470069,0.09846323,2621.9,2621.6,4.69002]
[1724294470260,0.09846323,2621.9,2621.5,2.28869]
[1724294474182,0.09846323,2621.9,2621.3,2.28889]
[1724294474367,3.8744,2621.8,2621.3,2.28889]
[1724294474772,0.09893434,2621.7,2621.2,7.41252039]
[1724294474971,0.09893434,2621.7,2621.2,9.70154039]
[1724294475904,0.09893434,2621.7,2621.3,2.28892]
[1724294476049,0.09893434,2621.7,2621.2,7.41252039]
[1724294476253,2.4014,2621.5,2621.2,7.41252039]
[1724294476456,1.86044,2621.4,2621.2,7.41252039]
[1724294476652,1.95896246,2621.4,2620.9,2.28924]
[1724294476903,1.473,2621.2,2620.8,7.41252039]
[1724294477067,1.473,2621.0,2620.8,7.41252039]
[1724294477404,0.09825258,2620.9,2620.5,2.28958]
[1724294477910,2.3619,2621.1,2620.5,2.28957]
[1724294478088,0.0981054,2620.8,2620.5,4.57915]
[1724294478289,0.612393,2621.0,2620.6,2.28954]
[1724294478592,2.3619,2621.1,2620.6,2.28954]
[1724294478929,0.09816997,2620.9,2620.6,2.28954]
[1724294479115,0.09823453,2621.0,2620.6,2.28954]
[1724294479261,0.0981054,2620.8,2620.4,3.7678]
[1724294479461,0.0981054,2620.8,2620.3,7.41252039]
[1724294479462,2.38354004,2621.3,2621.0,2.28912]
[1724294479774,0.39858144,2621.3,2621.0,2.28912]
[1724294479992,0.39858144,2621.3,2620.7,2.28941]
[1724294480208,0.39858144,2621.3,2620.7,2.28939]
[1724294480209,0.621844,2621.2,2620.7,2.28939]
[1724294480511,2.094844,2621.2,2620.7,2.28939]
[1724294482407,0.0981748,2621.1,2620.7,2.28939]
[1724294482762,0.0981748,2621.1,2620.7,4.57879]
[1724294483211,0.0981748,2621.1,2620.8,2.28937]
[1724294483868,0.39858144,2621.3,2620.8,2.28937]
[1724294484199,0.39858144,2621.3,2621.0,2.28917]
[1724294484378,0.09830702,2621.2,2621.0,4.57834]
[1724294484725,0.39858144,2621.3,2621.0,2.28917]
[1724294484914,0.09825939,2621.1,2621.0,2.28917]
[1724294485212,0.09828966,2621.1,2621.0,2.28917]
[1724294485370,0.39858144,2621.3,2621.0,2.28917]
[1724294485713,0.09835421,2621.2,2621.0,2.28917]
[1724294486012,0.39858144,2621.3,2621.0,2.28917]
[1724294486158,0.09818815,2621.1,2621.0,2.28917]
[1724294486367,0.39858144,2621.3,2621.0,2.28917]
[1724294486612,0.09826962,2621.2,2621.0,2.28917]
[1724294486982,0.39858144,2621.3,2621.1,2.2891]
[1724294488213,0.39858144,2621.3,2621.0,2.9765]
[1724294488770,0.39858144,2621.3,2621.0,2.97648]
[1724294489397,0.39858144,2621.3,2621.0,2.28915]
[1724294489970,0.39858144,2621.3,2621.0,2.28914]
[1724294491089,0.39858144,2621.3,2621.1,2.28909]
[1724294491625,0.39858144,2621.3,2621.0,2.28914]
[1724294493031,0.39858144,2621.3,2621.0,4.57828]
[1724294493192,0.39858144,2621.3,2621.0,3.123748]
[1724294496326,0.39858144,2621.3,2621.0,0.834608]
[1724294496630,0.39858144,2621.3,2620.8,2.28932]
[1724294497236,0.39858144,2621.3,2620.8,4.57865]
[1724294497404,0.09823464,2621.2,2620.9,2.28928]
[1724294497722,0.39858144,2621.3,2620.9,2.28928]
[1724294497889,0.09818701,2621.1,2620.9,2.28928]
[1724294498090,0.39858144,2621.3,2620.9,2.28928]
[1724294498301,0.09813937,2621.0,2620.9,2.28928]
[1724294498532,0.39858144,2621.3,2620.9,2.99486]
[1724294498688,0.09817321,2621.0,2620.9,2.28928]
[1724294498884,0.39858144,2621.3,2621.0,2.28918]
[1724294499133,0.39858144,2621.3,2621.1,2.4839]
[1724294499443,0.39858144,2621.3,2621.1,4.77299]
[1724294499644,0.39858144,2621.3,2621.1,2.4839]
[1724294501749,0.39858144,2621.3,2621.0,2.28915]
[1724294501750,0.39858144,2621.3,2620.9,2.28928]
[1724294503650,0.39858144,2621.3,2620.8,4.57866]
[1724294503951,0.86336482,2621.3,2620.8,2.28932]
[1724294504122,0.86336482,2621.3,2620.8,4.57862]
[1724294504320,0.86336482,2621.3,2620.8,2.2893]
[1724294504534,0.86336482,2621.3,2620.8,4.57863]
[1724294504733,0.86336482,2621.3,2620.9,2.28928]
[1724294506959,0.39858144,2621.3,2620.9,2.28928]
[1724294509361,0.39858144,2621.3,2621.0,2.28919]
[1724294510214,0.39858144,2621.3,2620.9,2.28927]
[1724294511816,0.39858144,2621.3,2620.8,4.57862]
[1724294512557,0.09788361,2621.2,2620.9,2.28927]
[1724294512916,0.39858144,2621.3,2621.0,2.28919]
[1724294513119,0.09781904,2621.1,2621.0,2.28919]
[1724294513315,0.39858144,2621.3,2621.0,2.28919]
[1724294513519,0.09779741,2621.1,2621.0,2.28919]
[1724294513857,0.09777578,2621.1,2621.0,2.28919]
[1724294514017,0.39858144,2621.3,2621.0,4.57838]
[1724294514361,0.09784034,2621.2,2621.1,6.12747084]
[1724294514573,0.09784034,2621.2,2621.1,8.46177]
[1724294514734,0.09784034,2621.2,2621.1,6.98877]
[1724294515056,0.39858144,2621.3,2621.1,2.28906]
[1724294515267,0.0912321,2621.2,2621.1,2.28906]
[1724294515417,0.39858144,2621.3,2621.0,2.28914]
[1724294515619,0.0912321,2621.2,2621.0,2.3392]
[1724294515817,0.39858144,2621.3,2621.0,2.3392]
[1724294516458,0.0912321,2621.2,2621.0,2.3392]
[1724294516760,0.39858144,2621.3,2621.1,2.28909]
[1724294517133,0.39858144,2621.3,2621.1,4.57818]
[1724294517468,0.39858144,2621.3,2621.1,2.28909]
[1724294517619,0.39858144,2621.3,2621.1,4.57815]
[1724294517819,0.39858144,2621.3,2621.2,2.28902]
[1724294518259,0.39858144,2621.3,2621.2,4.57804]
[1724294520250,0.39858144,2621.3,2621.2,2.28902]
[1724294522149,0.49010739,2621.3,2621.2,2.28902]
[1724294522890,0.49010739,2621.3,2621.2,4.57804]
[1724294523042,0.39858144,2621.3,2621.2,3.128044]
[1724294523675,0.39858144,2621.3,2621.2,2.28902]
[1724294523858,0.49010307,2621.3,2621.2,2.28902]
[1724294526671,0.49010307,2621.3,2621.2,4.57804]
[1724294527048,0.39858144,2621.3,2621.2,10.68896]
[1724294527229,0.39858144,2621.3,2621.2,10.018836]
[1724294529381,0.39858144,2621.3,2621.2,7.995836]
[1724294529927,0.39858144,2621.3,2621.2,2.28902]
[1724294530583,0.49029177,2621.3,2621.0,4.73652]
[1724294530883,0.49029177,2621.3,2621.1,2.28906]
[1724294532842,0.49029177,2621.3,2620.8,2.28931]
[1724294533043,0.49029177,2621.3,2620.8,4.57863]
[1724294533344,0.49029177,2621.3,2620.9,2.28925]
[1724294533545,0.49029177,2621.3,2621.0,2.2892]
[1724294535593,2.59051729,2621.3,2620.7,2.28946]
[1724294535884,2.59051729,2621.3,2620.6,9.70199039]
[1724294535885,1.473,2621.1,2620.6,9.70199039]
[1724294536187,1.473,2621.1,2620.5,7.95571125]
[1724294536188,2.4505,2620.8,2620.4,2.28967]
[1724294536482,2.4505,2620.8,2620.2,11.99216039]
[1724294536650,1.56377249,2620.7,2620.2,9.70234039]
[1724294537146,1.56377249,2620.7,2619.9,15.36823164]
[1724294537147,1.473,2620.5,2619.9,15.36823164]
[1724294537482,1.473,2620.1,2619.6,9.70287039]
[1724294537677,1.473,2620.1,2619.6,2.29035]
[1724294538096,0.09035729,2620.0,2619.6,2.29035]
[1724294538255,0.09035729,2620.0,2619.4,11.71926125]
[1724294538256,0.09035729,2620.0,2619.4,10.24628125]
[1724294538457,1.473,2619.9,2619.3,7.41252039]
[1724294538749,1.473,2619.9,2619.3,9.70315039]
[1724294539092,0.09011042,2619.8,2619.4,2.29058]
[1724294539874,6.13809,2619.7,2619.1,0.46940348]
[1724294540054,0.62282004,2619.6,2619.0,9.70338039]
[1724294540270,1.56248278,2619.5,2619.0,2.29086]
[1724294540481,2.3747,2619.4,2618.6,0.43932238]
[1724294540797,4.75423656,2619.4,2618.7,2.29119]
[1724294540955,5.65654124,2619.4,2618.7,2.29119]
[1724294541156,5.65654124,2619.4,2618.6,2.29123]
[1724294541532,5.65654124,2619.4,2618.7,2.2912]
[1724294542280,2.29069,2619.3,2618.5,2.29132]
[1724294542448,0.79472312,2619.2,2618.6,2.29129]
[1724294542649,2.46324274,2619.1,2617.9,2.4077]
[1724294542903,4.75411274,2619.1,2617.9,2.4077]
[1724294543182,0.08854274,2619.1,2618.8,2.29111]
[1724294543303,0.08854274,2619.1,2618.8,2.520221]
[1724294543505,2.3883,2619.5,2618.8,2.29111]
[1724294543731,0.08835118,2619.0,2618.6,2.29123]
[1724294543941,4.67881,2619.5,2618.6,2.29123]
[1724294544158,0.08828218,2618.9,2618.8,2.29106]
[1724294544302,2.3883,2619.5,2619.0,2.29093]
[1724294544508,3.73513,2619.5,2619.1,2.2908]
[1724294544761,2.3883,2619.5,2618.9,2.29103]
[1724294545110,2.3883,2619.5,2618.7,2.29115]
[1724294545315,2.3883,2619.5,2618.7,2.29114]
[1724294545316,4.67882,2619.5,2618.7,2.29114]
[1724294545533,2.3883,2619.5,2618.5,3.0]
[1724294545739,2.3883,2619.5,2618.6,0.55]
[1724294545931,2.3883,2619.5,2618.9,2.29097]
[1724294546112,4.67882,2619.5,2618.7,2.29118]
[1724294546313,4.67882,2619.5,2618.7,2.29114]
[1724294546635,2.3883,2619.5,2618.9,2.29103]
[1724294549039,2.3883,2619.5,2618.5,3.0]
[1724294549040,2.2803,2619.3,2618.5,5.29132]
[1724294549205,2.2803,2618.7,2618.0,2.29174]
[1724294549555,2.2803,2618.7,2617.6,9.88242039]
[1724294549556,2.2803,2618.7,2618.1,2.29172]
[1724294550139,2.2803,2618.7,2617.6,2.4699]
[1724294550316,2.3109,2619.0,2618.4,4.58286]
[1724294550559,2.3109,2619.0,2618.4,2.2914]
[1724294550940,2.3109,2619.0,2618.5,2.29135]
[1724294551483,2.4918,2619.3,2618.5,2.29135]
[1724294551659,2.4918,2619.3,2618.7,2.29118]
[1724294551973,0.39903492,2619.2,2618.5,4.811795]
[1724294552175,0.39903492,2619.2,2618.5,2.29131]
[1724294552637,2.2948,2619.0,2618.3,2.2915]
[1724294553277,4.5858,2619.0,2618.3,2.2915]
[1724294553482,0.45858,2618.9,2618.3,2.2915]
[1724294553977,2.74966,2618.9,2618.2,9.70411039]
[1724294554173,0.45858,2618.9,2618.3,2.29155]
[1724294555251,2.29137,2618.6,2618.2,7.41252039]
[1724294555473,2.2698,2618.6,2617.9,2.29186]
[1724294555787,0.0876325,2618.5,2618.0,2.29182]
[1724294557377,2.2698,2618.6,2618.0,2.29182]
[1724294557859,0.08694361,2618.5,2618.0,2.29182]
[1724294558294,0.08694361,2618.5,2617.9,2.29186]
[1724294558459,0.08694361,2618.5,2618.1,2.29167]
[1724294558665,4.77442,2618.8,2618.1,2.29167]
[1724294558865,0.08453779,2618.7,2618.1,2.29167]
[1724294559392,0.08453779,2618.7,2617.9,5.94240204]
[1724294559598,0.08453779,2618.7,2618.1,2.29173]
[1724294559778,0.84540957,2618.7,2618.1,2.29173]
[1724294560515,2.3555,2618.5,2617.9,2.29186]
[1724294560894,2.3555,2618.5,2617.8,7.41252039]
[1724294560895,0.08413417,2618.4,2617.8,7.41252039]
[1724294561394,0.08413417,2618.4,2617.8,9.70446039]
[1724294561593,0.78637059,2618.4,2617.8,9.70446039]
[1724294562105,0.78637059,2618.4,2617.9,2.29188]
[1724294562613,0.08413417,2618.4,2617.9,4.58373]
[1724294562761,0.08413417,2618.4,2617.6,2.3419]
[1724294562967,0.08413417,2618.4,2617.7,0.55]
[1724294563166,4.64296,2618.8,2618.0,2.29179]
[1724294563368,0.08391338,2618.3,2618.0,2.29179]
[1724294563570,0.510154,2618.7,2618.1,2.29166]
[1724294563804,0.08384867,2618.2,2618.1,2.29166]
[1724294564010,2.3518,2618.3,2618.0,2.29175]
[1724294564321,0.08384867,2618.2,2618.1,2.29172]
[1724294564685,2.3518,2618.5,2618.1,2.29172]
[1724294564901,0.08399543,2618.4,2618.1,2.29172]
[1724294565284,0.08399543,2618.4,2618.0,4.58351]
[1724294565482,0.08399543,2618.4,2617.9,2.29184]
[1724294565670,2.3518,2618.3,2617.9,2.29184]
[1724294565867,0.08386601,2618.2,2617.6,2.29214]
[1724294566068,0.08386601,2618.2,2617.6,2.29212]
[1724294566295,0.08386601,2618.2,2617.6,4.58424]
[1724294566867,0.08386601,2618.2,2617.7,2.29208]
[1724294567089,0.39908053,2618.1,2617.7,2.29208]
[1724294567298,0.08362423,2618.0,2617.7,2.29208]
[1724294567613,0.08362423,2618.0,2617.6,2.29212]
[1724294567793,0.08362423,2618.0,2617.6,2.29211]
[1724294568268,0.08362423,2618.0,2617.6,4.58422]
[1724294568469,0.08362423,2618.0,2617.6,2.29211]
[1724294570026,0.36106371,2618.0,2617.6,2.29211]
[1724294570525,2.3867,2617.9,2617.6,2.29211]
[1724294570709,2.47027646,2617.9,2617.6,2.29211]
[1724294571324,2.47027646,2617.9,2617.5,0.005]
[1724294572298,2.47027646,2617.9,2617.5,2.29726]
[1724294572501,2.78495611,2617.9,2617.5,0.005]
[1724294574002,4.58434,2617.6,2617.5,0.005]
[1724294574207,6.84924,2617.6,2617.5,0.005]
[1724294574740,9.9325246,2617.6,2617.5,0.005]
[1724294575333,9.9325246,2617.6,2617.2,0.005]
[1724294575334,6.84926,2617.3,2617.2,0.005]
[1724294575632,13.94226,2617.3,2617.2,0.005]
[1724294575937,5.34719454,2617.3,2617.2,0.005]
[1724294576134,2.34719454,2617.3,2617.2,0.005]
[1724294576644,0.08279454,2617.3,2617.2,0.005]
[1724294576806,0.08279454,2617.3,2617.2,2.29752]
[1724294577022,0.08279454,2617.3,2617.2,2.83293907]
[1724294577238,0.39908053,2618.1,2617.2,0.005]
[1724294577239,2.4589,2617.8,2617.2,0.005]
[1724294577454,0.08198739,2617.3,2617.2,0.005]
[1724294577746,4.75091,2617.8,2617.2,0.005]
[1724294577951,0.08227496,2617.3,2617.2,0.005]
[1724294578108,2.4589,2617.4,2617.2,0.005]
[1724294578314,4.83350704,2617.3,2617.2,0.005]
[1724294578636,2.54107704,2617.3,2617.2,0.005]
[1724294578954,3.02441174,2617.3,2617.2,0.005]
[1724294579134,2.54107704,2617.3,2617.2,0.005]
[1724294580241,4.83350704,2617.3,2617.2,0.005]
[1724294580553,7.52414028,2617.3,2617.2,0.005]
[1724294581131,10.52414028,2617.3,2617.2,0.005]
[1724294581459,4.38469431,2617.3,2617.2,0.005]
[1724294581623,2.54107704,2617.3,2617.2,0.005]
[1724294581828,0.08217704,2617.3,2617.2,0.005]
[1724294582371,0.08217704,2617.3,2617.2,2.29745]
[1724294582372,0.08249205,2617.3,2617.2,2.29745]
[1724294582664,0.39889682,2617.3,2617.2,2.29745]
[1724294582815,0.39889682,2617.3,2617.2,2.756455]
[1724294582816,0.48088151,2617.3,2617.2,2.756455]
[1724294583168,0.48088151,2617.3,2617.2,7.469975]
[1724294583557,0.39889682,2617.3,2617.2,7.469975]
[1724294583857,0.48050334,2617.3,2617.2,7.469975]
[1724294584227,0.48050334,2617.3,2617.2,10.312495]
[1724294584450,0.48050334,2617.3,2617.2,11.019975]
[1724294584649,0.39889682,2617.3,2617.2,11.019975]
[1724294585634,0.39889682,2617.3,2617.2,13.312495]
[1724294585834,0.03228821,2617.3,2617.2,13.312495]
[1724294586060,2.4355,2618.8,2617.9,2.4099]
[1724294586277,2.29154,2618.4,2617.6,4.70205]
[1724294586475,2.29154,2618.4,2617.4,2.29233]
[1724294586476,4.72721,2618.2,2617.4,2.29233]
[1724294586631,2.4355,2618.2,2617.5,2.2922]
[1724294586831,0.08260467,2618.1,2617.7,2.29202]
[1724294587036,0.08260467,2618.1,2617.5,2.2922]
[1724294587272,0.08260467,2618.1,2617.6,2.29216]
[1724294587474,2.4355,2618.2,2617.7,2.29207]
[1724294587673,0.39834796,2618.4,2617.8,2.29199]
[1724294587973,0.90515276,2618.4,2617.8,2.29199]
[1724294588222,0.08297937,2618.3,2617.7,2.29207]
[1724294588840,0.08297937,2618.3,2617.8,4.70117]
[1724294589498,3.0,2618.7,2617.8,2.4092]
[1724294589499,2.4937,2618.7,2617.8,2.4092]
[1724294589645,0.08324805,2618.2,2618.0,2.29176]
[1724294589982,3.0194506,2618.7,2618.0,2.29176]
[1724294590191,0.0803077,2618.1,2618.0,2.29176]
[1724294590389,3.0194506,2618.7,2618.1,2.2917]
[1724294590551,0.472656,2618.8,2618.1,2.2917]
[1724294591839,2.763776,2618.8,2618.1,2.29167]
[1724294592057,2.29122,2618.7,2617.9,2.29188]
[1724294592257,2.3583,2618.6,2617.7,2.29204]
[1724294592457,0.23583,2618.5,2617.7,2.29204]
[1724294592773,0.23583,2618.5,2617.8,2.29198]
[1724294592975,0.23583,2618.5,2617.9,2.29189]
[1724294594354,0.23583,2618.5,2617.7,4.58407]
[1724294594588,2.52723,2618.5,2617.7,4.58404]
[1724294594780,0.71769,2618.4,2617.7,2.29202]
[1724294594984,0.71769,2618.4,2617.8,2.29193]
[1724294595562,3.00916,2618.4,2617.7,2.29202]
[1724294595786,4.62167,2618.3,2617.7,2.29202]
[1724294595987,4.62167,2618.3,2617.6,7.41252039]
[1724294596395,2.29169,2618.2,2617.6,7.41252039]
[1724294597213,2.3301,2617.8,2617.2,0.005]
[1724294597357,2.754347,2617.7,2617.2,0.005]
[1724294597786,2.29219,2617.6,2617.2,0.005]
[1724294597985,2.754347,2617.7,2617.2,0.005]
[1724294597986,5.046517,2617.7,2617.2,0.005]
[1724294598374,2.29218,2617.6,2617.2,0.005]
[1724294598600,0.5046527,2617.5,2617.2,0.005]
[1724294598904,2.754347,2617.7,2617.2,0.005]
[1724294599060,4.28637401,2618.1,2617.5,2.29223]
[1724294599259,3.0,2618.0,2617.5,2.29223]
[1724294599497,6.30656361,2618.6,2617.2,0.005]
[1724294599498,1.97397401,2618.4,2617.8,2.29197]
[1724294599843,4.66004881,2618.7,2618.0,2.2918]
[1724294599844,6.55653401,2618.7,2618.0,2.2918]
[1724294599996,2.29136,2618.6,2617.8,2.29192]
[1724294600339,2.29132,2618.6,2618.0,2.29176]
[1724294600640,2.29128,2618.7,2617.8,4.58389]
[1724294600641,2.29127,2618.7,2617.8,4.58389]
[1724294600946,4.60393,2618.4,2617.6,9.70462039]
[1724294601090,0.483976,2618.3,2617.6,9.70462039]
[1724294601297,0.483976,2618.3,2617.2,7.41752039]
[1724294601298,2.29182,2618.0,2617.2,7.41752039]
[1724294601647,4.98227368,2618.2,2617.5,2.29225]
[1724294601853,2.69055368,2618.2,2617.5,2.29225]
[1724294602146,0.39884368,2618.2,2617.6,2.29211]
[1724294602346,0.07998686,2618.1,2617.7,2.292]
[1724294602901,0.07998686,2618.1,2617.5,2.29221]
[1724294603102,0.07998686,2618.1,2617.3,2.29242]
[1724294603103,2.4406,2618.0,2617.3,2.29237]
[1724294603369,2.85318944,2617.9,2617.2,7.41752039]
[1724294603683,2.37195075,2617.9,2617.2,7.41752039]
[1724294604070,2.29219,2617.6,2617.2,7.41752039]
[1724294604292,2.29227,2617.5,2617.2,7.41752039]
[1724294604580,0.07945363,2617.5,2617.2,0.005]
[1724294604806,2.29215,2617.7,2617.2,0.005]
[1724294604969,0.07917481,2617.4,2617.2,0.005]
[1724294605171,0.229215,2617.6,2617.2,0.005]
[1724294605401,2.3890565,2617.5,2616.9,0.005]
[1724294605585,2.2925,2617.3,2616.9,0.005]
[1724294605781,0.07970454,2617.2,2616.9,0.005]
[1724294606110,2.2925,2617.3,2616.9,0.005]
[1724294606312,0.07955164,2617.1,2616.9,0.005]
[1724294606634,0.07947589,2617.0,2616.9,0.005]
[1724294607135,2.2925,2617.3,2616.9,0.005]
[1724294607445,1.18695633,2617.3,2616.9,0.005]
[1724294607587,0.07898661,2617.2,2616.9,0.005]
[1724294607776,5.3098,2617.5,2616.9,2.29778]
[1724294608127,0.07907891,2617.4,2617.0,2.29268]
[1724294608271,0.07907891,2617.4,2616.9,0.005]
[1724294608470,5.29219,2617.6,2616.9,0.005]
[1724294608698,0.07895775,2617.3,2616.9,0.005]
[1724294608914,2.2927,2617.0,2616.9,0.005]
[1724294609088,2.29253,2617.2,2616.9,0.005]
[1724294609089,5.29268,2617.1,2616.9,0.005]
[1724294609438,0.07866995,2617.0,2616.9,0.005]
[1724294610531,3.39805457,2617.3,2616.9,0.005]
[1724294610692,0.0785953,2617.0,2616.9,2.29778]
[1724294610894,2.29218,2617.6,2616.9,0.47959892]
[1724294611096,0.07865423,2617.0,2616.9,0.005]
[1724294611426,2.69015533,2617.6,2616.9,0.005]
[1724294611931,2.37126488,2617.5,2616.9,0.005]
[1724294612089,0.07899488,2617.5,2616.9,0.005]
[1724294612286,0.07899488,2617.5,2616.9,2.29778]
[1724294613007,0.07899488,2617.5,2617.0,0.07641478]
[1724294613233,0.07899488,2617.5,2617.0,2.29263]
[1724294613827,0.07899488,2617.5,2616.9,2.77237892]
[1724294614887,0.07899488,2617.5,2616.9,2.77231892]
[1724294615415,0.07899488,2617.5,2617.1,2.2926]
[1724294615738,2.29201,2617.8,2616.9,5.06503892]
[1724294615923,0.07938664,2617.4,2616.9,5.06503892]
[1724294616093,2.29209,2617.7,2616.9,5.06503892]
[1724294616293,2.29209,2617.7,2616.9,2.77231892]
[1724294616527,2.37169608,2617.6,2616.9,2.77231892]
[1724294616909,0.47831014,2617.6,2616.9,2.77231892]
[1724294617105,0.47831014,2617.6,2617.1,2.29261]
[1724294619087,0.47831014,2617.6,2616.9,2.77231892]
[1724294619309,2.77054014,2617.6,2616.9,2.29772]
[1724294619607,2.29241,2617.4,2616.9,0.005]
[1724294619818,0.07953549,2617.3,2616.9,0.005]
[1724294621309,0.07953549,2617.3,2617.1,2.29256]
[1724294621508,0.39879406,2617.6,2617.0,2.29261]
[1724294621801,0.39879406,2617.6,2617.1,2.40671041]
[1724294622004,0.07688387,2617.5,2617.3,2.29236]
[1724294623229,0.07688387,2617.5,2617.4,2.36875353]
[1724294623374,0.07688387,2617.5,2617.4,7.4734]
[1724294623577,0.39879406,2617.6,2617.5,4.58452]
[1724294623771,0.39879406,2617.6,2617.5,5.33186]
[1724294624022,0.483976,2618.3,2617.8,2.29198]
[1724294624183,0.3986998,2618.0,2617.8,2.29198]
[1724294624384,0.3986998,2618.0,2617.9,6.9225]
[1724294624774,0.3986998,2618.0,2617.9,7.61475]
[1724294627221,2.29099,2619.0,2618.4,2.29147]
[1724294627521,2.29099,2619.0,2618.4,2.36784333]
[1724294627812,0.39867278,2618.9,2618.4,0.07637333]
[1724294628016,0.39867278,2618.9,2618.3,2.29148]
[1724294628227,0.26896628,2618.8,2618.1,9.70420039]
[1724294628425,4.7488,2618.6,2618.1,7.41252039]
[1724294630124,2.4575,2618.6,2618.1,7.41252039]
[1724294630335,2.56013628,2618.8,2618.1,7.41252039]
[1724294630847,2.29129,2618.7,2618.1,9.70425039]
[1724294631141,0.25602563,2618.6,2618.2,2.29163]
[1724294631283,0.26896628,2618.8,2618.2,2.29158]
[1724294631814,0.26896628,2618.8,2618.2,4.58317]
[1724294632027,0.26896628,2618.8,2618.2,2.29158]
[1724294632439,0.07542078,2618.7,2618.2,2.29158]
[1724294633457,0.07542078,2618.7,2618.4,2.29146]
[1724294633605,0.07542078,2618.7,2618.4,2.29141]
[1724294633932,0.07542078,2618.7,2617.9,4.63058]
[1724294633933,0.26896628,2618.8,2618.2,2.29162]
[1724294634264,0.07551889,2618.7,2618.3,2.29153]
[1724294634597,0.39867278,2618.9,2618.5,2.29137]
[1724294634931,0.07534639,2618.8,2618.5,2.29132]
[1724294635417,0.07534639,2618.8,2618.6,2.29124]
[1724294635626,0.07534639,2618.8,2618.4,4.55889]
[1724294636237,0.07534639,2618.8,2618.5,2.29138]
[1724294636959,0.07534639,2618.8,2618.7,2.29121]
[1724294637549,0.07534639,2618.8,2618.5,2.29131]
[1724294637755,0.07534639,2618.8,2618.6,2.2913]
[1724294637938,0.07534639,2618.8,2618.7,2.29121]
[1724294639753,0.07534639,2618.8,2618.7,6.86822]
[1724294640099,0.39867278,2618.9,2618.8,2.29112]
[1724294640444,0.47481301,2618.9,2618.8,2.29112]
[1724294640674,0.47481301,2618.9,2618.8,2.977933]
[1724294640882,0.47481301,2618.9,2618.8,5.269053]
[1724294641035,0.47481301,2618.9,2618.8,2.977933]
[1724294641307,0.47481301,2618.9,2618.6,2.29123]
[1724294641605,2.68971278,2618.9,2618.2,2.29159]
[1724294641780,2.68971278,2618.9,2618.3,0.55]
[1724294641944,2.68971278,2618.9,2618.3,2.41785904]
[1724294642140,2.68971278,2618.9,2618.2,2.29157]
[1724294642141,2.36716388,2618.8,2618.2,2.29157]
[1724294642384,0.07603388,2618.8,2618.3,2.4245]
[1724294642585,0.07603388,2618.8,2618.4,2.29142]
[1724294643438,0.07603388,2618.8,2618.2,2.29159]
[1724294643439,0.07603388,2618.8,2618.2,2.29157]
[1724294643901,0.07603388,2618.8,2618.2,4.58316]
[1724294644103,2.36715388,2618.8,2618.2,2.29157]
[1724294644263,0.07603388,2618.8,2618.2,3.71727804]
[1724294644448,0.07603388,2618.8,2618.2,6.00886804]
[1724294644881,0.07603388,2618.8,2618.2,3.71727804]
[1724294645086,0.07603388,2618.8,2618.3,2.29154]
[1724294645600,0.07603388,2618.8,2618.4,2.29146]
[1724294646463,0.07603388,2618.8,2618.6,2.29124]
[1724294647948,0.07603388,2618.8,2618.4,4.58285]
[1724294648309,0.39867278,2618.9,2618.4,4.58284]
[1724294648727,0.07613012,2618.8,2618.5,2.29138]
[1724294649017,0.07613012,2618.8,2618.4,2.29142]
[1724294649518,2.56533012,2618.8,2618.3,2.29155]
[1724294650312,0.07613012,2618.8,2618.2,2.2916]
[1724294650475,0.07613012,2618.8,2618.6,2.29125]
[1724294650676,0.07613012,2618.8,2618.6,2.29123]
[1724294650876,0.07613012,2618.8,2618.7,2.29121]
[1724294652432,0.07613012,2618.8,2618.7,4.64931]
[1724294654409,0.07613012,2618.8,2618.7,4.72567583]
[1724294654683,0.07613012,2618.8,2618.7,5.42736641]
[1724294654898,0.07613012,2618.8,2618.7,5.35100058]
[1724294655095,0.07613012,2618.8,2618.7,7.64221058]
[1724294655479,0.39867278,2618.9,2618.8,4.58224]
[1724294655700,0.39867278,2618.9,2618.8,5.34644306]
[1724294655904,0.47522177,2618.9,2618.8,5.34644306]
[1724294656325,0.47522177,2618.9,2618.8,3.05532306]
[1724294656636,0.47522177,2618.9,2618.7,2.29121]
[1724294657803,0.47522177,2618.9,2618.6,2.29128]
[1724294658021,0.47522177,2618.9,2618.7,2.2912]
[1724294658520,0.47522177,2618.9,2618.7,2.29114]
[1724294658725,0.47522177,2618.9,2618.8,0.229114]
[1724294659852,0.47522177,2618.9,2618.8,2.520234]
[1724294660064,0.47522177,2618.9,2618.8,4.811354]
[1724294660463,0.47522177,2618.9,2618.8,2.520234]
[1724294662771,0.47522177,2618.9,2618.8,4.933934]
[1724294664261,0.47522177,2618.9,2618.8,2.520234]
[1724294666583,0.47522177,2618.9,2618.8,4.811354]
[1724294666934,0.39867278,2618.9,2618.8,7.166154]
[1724294667136,0.47527109,2618.9,2618.8,7.716154]
[1724294667354,0.39867278,2618.9,2618.8,7.716154]
[1724294667865,0.47528802,2618.9,2618.8,7.716154]
[1724294668524,0.47528802,2618.9,2618.8,2.520234]
[1724294668950,0.47528802,2618.9,2618.8,4.811354]
[1724294669351,0.47528802,2618.9,2618.8,5.361354]
[1724294669547,0.47528802,2618.9,2618.8,7.781854]
[1724294669803,0.39867278,2618.9,2618.8,7.781854]
[1724294671602,1.98112245,2619.5,2619.3,2.29061]
[1724294671809,2.4451,2619.7,2619.3,2.29061]
[1724294671810,4.42622245,2619.7,2619.3,2.29061]
[1724294671963,0.07702988,2619.4,2619.3,2.748753]
[1724294672296,0.07688769,2619.4,2619.3,2.748753]
[1724294673050,0.07688769,2619.4,2619.3,0.458143]
[1724294673255,0.07688769,2619.4,2619.1,2.29082]